[Event "EYTCC U12 Girls 2018"]
[Site "Bad Blankeburg"]
[Date "2018.07.12"]
[Round "1"]
[White "Cornileau, Juliette"]
[Black "Gaal, Zsoka"]
[Result "0-1"]
[ECO "B04"]
[WhiteElo "1644"]
[BlackElo "2044"]
[Annotator "NA"]
[PlyCount "146"]
[EventDate "2018.07.12"]
[EventType "swiss"]
[EventCountry "GER"]
[SourceTitle "playchess.com"]
[Source "ChessBase"]
[SourceQuality "1"]
[TimeControl "40/5400+30:1800+30"]

1. e4 {[%emt 0:00:00]} Nf6 {[%emt 0:00:21]} 2. e5 {[%emt 0:00:00]} Nd5 {[%emt 0:00:19]} 3. d4 d6 4. Nf3 g6 5. Bc4 c6 6. O-O {[%emt 0:03:12]} Bg7 {[%emt 0:02:38]} 7. Qe2 {[%emt 0:05:21]} O-O {[%emt 0:05:53]} 8. Bb3 {[%emt 0:03:24]} Bg4 {[%emt 0:12:26]} 9. Re1 {[%emt 0:15:23]} dxe5 {[%emt 0:09:34]} 10. dxe5 {[%emt 0:00:55]} Nd7 {[%emt 0:12:28]} 11. c4 {[%emt 0:07:33]} Nc7 {[%emt 0:04:29]} 12. Bf4 {[%emt 0:11:00]} Ne6 {[%emt 0:01:48]} 13. Bg3 {[%emt 0:01:02]} Nd4 {[%emt 0:04:24]} 14. Qe3 {[%emt 0:03:50]} Nf5 {[%emt 0:10:31]} 15. Qf4 {[%emt 0:08:23]} Bxf3 {[%emt 0:01:41]} 16. Qxf3 {[%emt 0:00:43]} Qa5 {[%emt 0:02:39]} 17. Nc3 {[%emt 0:07:12]} Nxe5 {[%emt 0:07:09]} 18. Bxe5 {[%emt 0:04:00]} Bxe5 {[%emt 0:00:15]} 19. Rac1 {[%emt 0:02:27]} Bf6 {[%emt 0:06:04]} 20. Qe2 {[%emt 0:05:54]} Nd4 {[%emt 0:02:19]} 21. Qe3 {[%emt 0:03:11]} Rad8 {[%emt 0:03:20]} 22. Ne4 {[%emt 0:01:08]} Bg7 {[%emt 0:00:40]} 23. c5 {[%emt 0:02:53]} Nxb3 {[%emt 0:03:34]} 24. Qxb3 {[%emt 0:00:22]} Qc7 {[%emt 0:01:31]} 25. Qa3 {[%emt 0:01:07]} a6 {[%emt 0:00:50]} 26. b4 {[%emt 0:01:07]} Rd4 {[%emt 0:01:44]} 27. Qb3 {[%emt 0:01:17]} Qf4 {[%emt 0:01:34]} 28. Qb1 {[%emt 0:00:38]} Rfd8 {[%emt 0:01:18]} 29. Re3 {[%emt 0:02:52]} e6 {[%emt 0:01:40]} 30. Nd6 {[%emt 0:05:41]} Rxb4 {[%emt 0:01:04]} 31. Qc2 {[%emt 0:00:28]} Rb2 {[%emt 0:00:32]} 32. Qe4 {[%emt 0:02:06]} Qxf2+ {[%emt 0:02:15]} 33. Kh1 {[%emt 0:00:04]} Bh6 {[%emt 0:00:33]} 34. Ree1 {[%emt 0:02:48]} Bxc1 {[%emt 0:00:21]} 35. Rxc1 {[%emt 0:00:05]} Qe2 {[%emt 0:00:36]} 36. Qxe2 Rxe2 {[%emt 0:00:01]} 37. Rf1 {[%emt 0:00:33]} f5 {[%emt 0:00:21]} 38. h3 {[%emt 0:00:59]} Rxa2 {[%emt 0:00:18]} 39. Rd1 Rc2 {[%emt 0:00:19]} 40. Re1 {[%emt 0:00:52]} Rxc5 {[%emt 0:00:32]} 41. Nxb7 {[%emt 0:30:27]} Rcd5 {[%emt 0:30:21]} 42. Nxd8 {[%emt 0:00:17]} Rxd8 {[%emt 0:00:02]} 43. Rxe6 {[%emt 0:00:16]} Rc8 {[%emt 0:00:13]} 44. Re7 {[%emt 0:01:32]} c5 {[%emt 0:00:27]} 45. Re6 {[%emt 0:00:21]} a5 {[%emt 0:00:42]} 46. Ra6 {[%emt 0:00:21]} c4 {[%emt 0:00:10]} 47. Rxa5 {[%emt 0:00:13]} c3 {[%emt 0:00:32]} 48. Ra1 {[%emt 0:01:30]} c2 {[%emt 0:01:21]} 49. Rc1 {[%emt 0:00:09]} Kf7 {[%emt 0:00:28]} 50. Kg1 {[%emt 0:00:16]} Ke6 51. Kf2 {[%emt 0:00:05]} Ke5 {[%emt 0:00:43]} 52. Ke3 {[%emt 0:00:57]} Rc3+ {[%emt 0:01:09]} 53. Kd2 {[%emt 0:00:00]} Kd4 {[%emt 0:00:00]} 54. Ke2 {[%emt 0:00:00]} Ke4 {[%emt 0:00:00]} 55. Kd2 {[%emt 0:00:00]} Rc7 {[%emt 0:00:00]} 56. Re1+ {[%emt 0:00:00]} Kf4 {[%emt 0:00:00]} 57. Kc1 {[%emt 0:00:00]} Kg3 {[%emt 0:00:00]} 58. Re2 {[%emt 0:00:00]} f4 {[%emt 0:00:00]} 59. Rd2 {[%emt 0:00:00]} g5 {[%emt 0:00:00]} 60. Re2 {[%emt 0:00:00]} h5 {[%emt 0:00:00]} 61. Rd2 {[%emt 0:00:00]} g4 {[%emt 0:00:00]} 62. hxg4 {[%emt 0:00:00]} hxg4 {[%emt 0:00:00]} 63. Re2 {[%emt 0:00:00]} f3 {[%emt 0:00:00]} 64. gxf3 {[%emt 0:00:00]} gxf3 {[%emt 0:00:00]} 65. Re8 {[%emt 0:02:49]} f2 {[%emt 0:00:00]} 66. Rg8+ {[%emt 0:00:40]} Kf3 {[%emt 0:00:00]} 67. Rf8+ {[%emt 0:00:54]} Ke2 {[%emt 0:00:00]} 68. Re8+ {[%emt 0:00:18]} Kf1 {[%emt 0:00:00]} 69. Rf8 {[%emt 0:01:35]} Rc4 {[%emt 0:00:00]} 70. Rf7 {[%emt 0:02:44]} Ke2 {[%emt 0:00:00]} 71. Re7+ {[%emt 0:00:52]} Kf3 {[%emt 0:00:00]} 72. Rf7+ {[%emt 0:00:39]} Rf4 {[%emt 0:00:00]} 73. Rd7 {[%emt 0:00:32]} f1=Q+ {[%emt 0:00:00]} 0-1

[Event "EYTCC U12 Girls 2018"]
[Site "Bad Blankeburg"]
[Date "2018.07.12"]
[Round "1"]
[White "Markus, Molli Amina"]
[Black "Pentcheff, Laura"]
[Result "*"]
[ECO "B34"]
[WhiteElo "1566"]
[BlackElo "1594"]
[Annotator "NA"]
[PlyCount "59"]
[EventDate "2018.07.12"]
[EventType "swiss"]
[EventCountry "GER"]
[SourceTitle "playchess.com"]
[Source "ChessBase"]
[SourceQuality "1"]
[TimeControl "40/5400+30:1800+30"]

1. e4 {[%emt 0:00:00]} c5 {[%emt 0:00:00]} 2. Nf3 {[%emt 0:00:00]} Nc6 {[%emt 0:00:00]} 3. d4 {[%emt 0:00:00]} cxd4 {[%emt 0:00:00]} 4. Nxd4 {[%emt 0:00:00]} g6 {[%emt 0:00:44]} 5. Nc3 {[%emt 0:00:28]} Bg7 {[%emt 0:00:18]} 6. Be3 {[%emt 0:00:21]} Nf6 {[%emt 0:00:30]} 7. f3 {[%emt 0:00:28]} O-O {[%emt 0:04:58]} 8. Qd2 {[%emt 0:01:47]} e6 {[%emt 0:02:28]} 9. O-O-O {[%emt 0:03:25]} d5 {[%emt 0:01:09]} 10. exd5 {[%emt 0:04:13]} exd5 {[%emt 0:00:37]} 11. Nde2 {[%emt 0:02:01]} Be6 {[%emt 0:01:37]} 12. Nf4 {[%emt 0:00:46]} Ne7 {[%emt 0:02:45]} 13. h4 {[%emt 0:05:48]} Nf5 {[%emt 0:17:14]} 14. Bc5 {[%emt 0:05:37]} Re8 {[%emt 0:03:20]} 15. Nfxd5 {[%emt 0:06:02]} Nxd5 {[%emt 0:01:38]} 16. Nxd5 {[%emt 0:04:00]} Qxd5 {[%emt 0:02:56]} 17. Qxd5 {[%emt 0:01:19]} Bxd5 {[%emt 0:00:27]} 18. Rxd5 {[%emt 0:01:56]} Ng3 {[%emt 0:04:35]} 19. Bb5 {[%emt 0:22:04]} Nxh1 {[%emt 0:06:02]} 20. Bxe8 {[%emt 0:01:58]} Rxe8 {[%emt 0:01:13]} 21. Rd1 {[%emt 0:04:11]} Ng3 {[%emt 0:05:55]} 22. Bxa7 {[%emt 0:01:04]} Bh6+ {[%emt 0:03:47]} 23. Kb1 {[%emt 0:00:45]} Nf5 {[%emt 0:01:05]} 24. Rh1 {[%emt 0:04:58]} Re2 {[%emt 0:10:03]} 25. a3 {[%emt 0:02:51]} Rxg2 {[%emt 0:01:36]} 26. Bc5 {[%emt 0:06:43]} Ne3 {[%emt 0:07:10]} 27. c3 {[%emt 0:05:34]} Re2 {[%emt 0:05:57]} 28. h5 {[%emt 0:01:40]} g5 {[%emt 0:03:02]} 29. f4 {[%emt 0:02:14]} gxf4 {[%emt 0:01:57]} 30. Rg1+ *

[Event "EYTCC U12 Girls 2018"]
[Site "Bad Blankeburg"]
[Date "2018.07.12"]
[Round "1"]
[White "Markus, Molli Amina"]
[Black "Pentcheff, Laura"]
[Result "1/2-1/2"]
[ECO "A49"]
[WhiteElo "1566"]
[BlackElo "1594"]
[Annotator "NA"]
[PlyCount "110"]
[EventDate "2018.07.12"]
[EventType "swiss"]
[EventCountry "GER"]
[SourceTitle "playchess.com"]
[Source "ChessBase"]
[SourceQuality "1"]
[TimeControl "40/5400+30:1800+30"]

1. d4 {[%emt 0:00:00]} Nf6 {[%emt 0:00:00]} 2. Nf3 {[%emt 0:00:20]} g6 {[%emt 0:00:00]} 3. g3 {[%emt 0:00:23]} Bg7 {[%emt 0:00:00]} 4. Bg2 {[%emt 0:00:18]} O-O {[%emt 0:00:13]} 5. O-O {[%emt 0:00:32]} d6 {[%emt 0:00:08]} 6. c4 {[%emt 0:00:50]} c6 {[%emt 0:00:32]} 7. Nc3 {[%emt 0:00:58]} a6 {[%emt 0:00:12]} 8. a4 {[%emt 0:01:07]} Nbd7 {[%emt 0:01:23]} 9. e4 {[%emt 0:01:46]} c5 {[%emt 0:01:10]} 10. d5 {[%emt 0:02:03]} Ng4 {[%emt 0:03:07]} 11. h3 {[%emt 0:03:05]} Nge5 {[%emt 0:01:16]} 12. Nxe5 {[%emt 0:02:04]} Nxe5 {[%emt 0:00:15]} 13. Qe2 {[%emt 0:02:19]} Re8 {[%emt 0:11:27]} 14. f4 {[%emt 0:02:31]} Nd7 {[%emt 0:00:53]} 15. Bd2 {[%emt 0:03:10]} e6 {[%emt 0:11:31]} 16. Qf3 {[%emt 0:08:55]} exd5 {[%emt 0:06:31]} 17. exd5 {[%emt 0:04:39]} f5 {[%emt 0:04:00]} 18. Rae1 {[%emt 0:12:26]} Nf6 {[%emt 0:04:44]} 19. Rxe8+ {[%emt 0:07:26]} Qxe8 {[%emt 0:00:44]} 20. Re1 {[%emt 0:01:23]} Qf7 {[%emt 0:02:04]} 21. b3 {[%emt 0:05:01]} Bd7 {[%emt 0:02:07]} 22. Kf2 {[%emt 0:02:33]} Re8 {[%emt 0:01:38]} 23. Rxe8+ {[%emt 0:02:09]} Nxe8 {[%emt 0:01:28]} 24. Qe2 {[%emt 0:06:16]} Bd4+ {[%emt 0:01:25]} 25. Kf1 {[%emt 0:01:21]} Qg7 {[%emt 0:02:58]} 26. Nd1 {[%emt 0:02:25]} Nc7 {[%emt 0:02:30]} 27. Qe1 {[%emt 0:04:23]} b5 {[%emt 0:08:54]} 28. axb5 {[%emt 0:03:26]} axb5 {[%emt 0:02:53]} 29. Bf3 {[%emt 0:02:15]} bxc4 {[%emt 0:02:01]} 30. bxc4 {[%emt 0:00:24]} Qf6 {[%emt 0:07:01]} 31. Kg2 {[%emt 0:02:07]} h6 {[%emt 0:02:28]} 32. Qe2 {[%emt 0:01:56]} g5 {[%emt 0:06:21]} 33. Nf2 {[%emt 0:02:25]} Qg7 {[%emt 0:09:32]} 34. fxg5 {[%emt 0:01:35]} hxg5 {[%emt 0:00:21]} 35. Kf1 {[%emt 0:04:23]} Ne8 {[%emt 0:01:10]} 36. Bg2 {[%emt 0:01:09]} Nf6 {[%emt 0:01:39]} 37. Bc1 {[%emt 0:01:43]} Kf7 {[%emt 0:02:34]} 38. Qd2 {[%emt 0:01:48]} g4 {[%emt 0:00:39]} 39. h4 {[%emt 0:01:14]} Nh5 {[%emt 0:00:06]} 40. Qd3 {[%emt 0:00:52]} Qe5 {[%emt 0:00:26]} 41. Nh1 {[%emt 0:30:56]} Bc3 {[%emt 0:31:06]} 42. Qe3 {[%emt 0:01:16]} Qxe3 {[%emt 0:00:35]} 43. Bxe3 {[%emt 0:00:06]} Bc8 {[%emt 0:00:44]} 44. Kf2 {[%emt 0:01:12]} Ba6 {[%emt 0:00:24]} 45. Bf1 {[%emt 0:00:14]} Nf6 {[%emt 0:00:00]} 46. Kg2 {[%emt 0:00:00]} Ne4 {[%emt 0:00:00]} 47. Nf2 {[%emt 0:00:00]} Nd2 {[%emt 0:00:00]} 48. Bxd2 {[%emt 0:00:00]} Bxd2 {[%emt 0:00:00]} 49. Bd3 {[%emt 0:00:00]} Kf6 {[%emt 0:00:00]} 50. Kf1 {[%emt 0:00:00]} Bc3 {[%emt 0:00:00]} 51. Nd1 {[%emt 0:00:00]} Be5 {[%emt 0:00:00]} 52. Kf2 {[%emt 0:00:00]} Bd4+ {[%emt 0:00:00]} 53. Ke2 {[%emt 0:00:00]} Be5 {[%emt 0:00:00]} 54. Kf2 {[%emt 0:00:00]} Bd4+ {[%emt 0:00:00]} 55. Ke2 {[%emt 0:00:00]} Be5 {[%emt 0:00:00]} 1/2-1/2

[Event "EYTCC U12 Girls 2018"]
[Site "Bad Blankeburg"]
[Date "2018.07.12"]
[Round "1"]
[White "Pohle, Saskia"]
[Black "Bashylina, Luisa"]
[Result "*"]
[ECO "B20"]
[WhiteElo "1560"]
[BlackElo "1836"]
[Annotator "NA"]
[PlyCount "61"]
[EventDate "2018.07.12"]
[EventType "swiss"]
[EventCountry "GER"]
[SourceTitle "playchess.com"]
[Source "ChessBase"]
[SourceQuality "1"]
[TimeControl "40/5400+30:1800+30"]

1. e4 {[%emt 0:00:00]} c5 {[%emt 0:00:00]} 2. b4 {[%emt 0:00:00]} cxb4 {[%emt 0:00:22]} 3. a3 {[%emt 0:00:00]} bxa3 {[%emt 0:01:02]} 4. d4 {[%emt 0:00:00]} d6 {[%emt 0:03:46]} 5. c3 {[%emt 0:01:04]} e6 {[%emt 0:04:44]} 6. Bd3 {[%emt 0:01:09]} Nc6 {[%emt 0:02:20]} 7. Nf3 {[%emt 0:00:58]} Nf6 {[%emt 0:02:31]} 8. Nxa3 {[%emt 0:00:59]} Be7 {[%emt 0:01:48]} 9. O-O {[%emt 0:02:47]} O-O {[%emt 0:01:37]} 10. Qc2 {[%emt 0:03:46]} h6 {[%emt 0:03:08]} 11. Re1 {[%emt 0:01:44]} a6 {[%emt 0:03:14]} 12. Bb2 {[%emt 0:31:31]} Bd7 {[%emt 0:02:51]} 13. Nc4 {[%emt 0:05:17]} Rc8 {[%emt 0:13:17]} 14. Qd2 {[%emt 0:02:08]} d5 {[%emt 0:09:05]} 15. exd5 {[%emt 0:01:19]} exd5 {[%emt 0:00:39]} 16. Nce5 {[%emt 0:00:49]} Nxe5 {[%emt 0:11:03]} 17. Nxe5 {[%emt 0:00:18]} Bd6 {[%emt 0:01:39]} 18. Ba3 {[%emt 0:08:16]} Bxa3 {[%emt 0:04:58]} 19. Rxa3 {[%emt 0:00:14]} Ng4 {[%emt 0:03:50]} 20. Nxd7 {[%emt 0:02:07]} Qxd7 {[%emt 0:00:04]} 21. Qf4 {[%emt 0:01:33]} Nf6 {[%emt 0:00:52]} 22. Bf5 {[%emt 0:00:35]} Qc7 {[%emt 0:00:04]} 23. Qf3 {[%emt 0:05:09]} Rfe8 {[%emt 0:02:30]} 24. Rxe8+ {[%emt 0:03:12]} Rxe8 {[%emt 0:00:05]} 25. g3 {[%emt 0:01:54]} Qb6 {[%emt 0:04:46]} 26. Ra2 {[%emt 0:03:01]} Qb3 {[%emt 0:02:00]} 27. Rd2 {[%emt 0:01:23]} Qa3 {[%emt 0:01:10]} 28. Rd1 {[%emt 0:01:49]} b5 {[%emt 0:02:05]} 29. Qd3 {[%emt 0:04:06]} Qa2 {[%emt 0:01:51]} 30. Kf1 {[%emt 0:02:51]} Qa4 {[%emt 0:03:31]} 31. Rb1 {[%emt 0:01:21]} *

[Event "EYTCC U12 Girls 2018"]
[Site "Bad Blankeburg"]
[Date "2018.07.12"]
[Round "1"]
[White "Fizerova, Lucie"]
[Black "Wagner, Margarethe"]
[Result "0-1"]
[ECO "B20"]
[WhiteElo "1554"]
[BlackElo "1635"]
[Annotator "NA"]
[PlyCount "136"]
[EventDate "2018.07.12"]
[EventType "swiss"]
[EventCountry "GER"]
[SourceTitle "playchess.com"]
[Source "ChessBase"]
[SourceQuality "1"]
[TimeControl "40/5400+30:1800+30"]

1. e4 {[%emt 0:00:00]} c5 {[%emt 0:00:00]} 2. b4 {[%emt 0:00:00]} cxb4 {[%emt 0:00:22]} 3. a3 {[%emt 0:00:00]} bxa3 {[%emt 0:01:02]} 4. d4 {[%emt 0:00:00]} d6 {[%emt 0:03:46]} 5. c3 {[%emt 0:01:04]} e6 {[%emt 0:04:44]} 6. Bd3 {[%emt 0:01:09]} Nc6 {[%emt 0:02:20]} 7. Nf3 {[%emt 0:00:58]} Nf6 {[%emt 0:02:31]} 8. Nxa3 {[%emt 0:00:59]} Be7 {[%emt 0:01:48]} 9. O-O {[%emt 0:02:47]} O-O {[%emt 0:01:37]} 10. Qc2 {[%emt 0:03:46]} h6 {[%emt 0:03:08]} 11. Re1 {[%emt 0:01:44]} a6 {[%emt 0:03:14]} 12. Bb2 {[%emt 0:31:31]} Bd7 {[%emt 0:02:51]} 13. Nc4 {[%emt 0:05:17]} Rc8 {[%emt 0:13:17]} 14. Qd2 {[%emt 0:02:08]} d5 {[%emt 0:09:05]} 15. exd5 {[%emt 0:01:19]} exd5 {[%emt 0:00:39]} 16. Nce5 {[%emt 0:00:49]} Nxe5 {[%emt 0:11:03]} 17. Nxe5 {[%emt 0:00:18]} Bd6 {[%emt 0:01:39]} 18. Ba3 {[%emt 0:08:16]} Bxa3 {[%emt 0:04:58]} 19. Rxa3 {[%emt 0:00:14]} Ng4 {[%emt 0:03:50]} 20. Nxd7 {[%emt 0:02:07]} Qxd7 {[%emt 0:00:04]} 21. Qf4 {[%emt 0:01:33]} Nf6 {[%emt 0:00:52]} 22. Bf5 {[%emt 0:00:35]} Qc7 {[%emt 0:00:04]} 23. Qf3 {[%emt 0:05:09]} Rfe8 {[%emt 0:02:30]} 24. Rxe8+ {[%emt 0:03:12]} Rxe8 {[%emt 0:00:05]} 25. g3 {[%emt 0:01:54]} Qb6 {[%emt 0:04:46]} 26. Ra2 {[%emt 0:03:01]} Qb3 {[%emt 0:02:00]} 27. Rd2 {[%emt 0:01:23]} Qa3 {[%emt 0:01:10]} 28. Rd1 {[%emt 0:01:49]} b5 {[%emt 0:02:05]} 29. Qd3 {[%emt 0:04:06]} Qa2 {[%emt 0:01:51]} 30. Kf1 {[%emt 0:02:51]} Qa4 {[%emt 0:03:31]} 31. Rb1 {[%emt 0:01:21]} Qc4 {[%emt 0:02:39]} 32. Ra1 {[%emt 0:02:29]} Ra8 {[%emt 0:01:11]} 33. Ke2 {[%emt 0:00:59]} g6 {[%emt 0:01:48]} 34. Qxc4 {[%emt 0:01:23]} dxc4 {[%emt 0:01:05]} 35. Bh3 {[%emt 0:01:33]} Re8+ {[%emt 0:02:09]} 36. Kf3 {[%emt 0:01:38]} Nd5 {[%emt 0:01:36]} 37. Ra3 {[%emt 0:00:53]} f5 {[%emt 0:01:01]} 38. Rxa6 {[%emt 0:02:24]} Kf7 {[%emt 0:01:44]} 39. Ra3 {[%emt 0:00:45]} Re1 {[%emt 0:01:16]} 40. Ra7+ {[%emt 0:01:22]} Kf6 {[%emt 0:00:23]} 41. Ra6+ {[%emt 0:33:23]} Kg5 {[%emt 0:32:40]} 42. Ra3 {[%emt 0:01:37]} Rc1 {[%emt 0:00:47]} 43. Ke2 {[%emt 0:01:09]} Rxc3 {[%emt 0:00:42]} 44. Rxc3 {[%emt 0:00:00]} Nxc3+ {[%emt 0:00:00]} 45. Ke3 {[%emt 0:00:00]} Nd5+ {[%emt 0:00:00]} 46. Kd2 {[%emt 0:00:00]} Kf6 {[%emt 0:00:00]} 47. Bf1 {[%emt 0:00:00]} Ke6 {[%emt 0:00:00]} 48. h3 {[%emt 0:00:00]} g5 {[%emt 0:00:00]} 49. Be2 {[%emt 0:00:00]} f4 {[%emt 0:00:00]} 50. g4 {[%emt 0:00:00]} Kd6 51. Bf1 {[%emt 0:00:00]} f3 {[%emt 0:00:00]} 52. Kc2 {[%emt 0:00:00]} Nf4 {[%emt 0:00:00]} 53. Kd2 {[%emt 0:00:00]} Kd5 {[%emt 0:00:00]} 54. Ke3 {[%emt 0:00:00]} b4 {[%emt 0:00:00]} 55. Kd2 {[%emt 0:00:00]} Kxd4 {[%emt 0:00:00]} 56. Kc2 {[%emt 0:00:00]} b3+ {[%emt 0:00:00]} 57. Kb2 {[%emt 0:00:00]} Nd3+ {[%emt 0:00:00]} 58. Bxd3 {[%emt 0:00:00]} Kxd3 {[%emt 0:00:00]} 59. Kc1 {[%emt 0:00:00]} c3 {[%emt 0:00:00]} 60. h4 {[%emt 0:00:00]} gxh4 {[%emt 0:00:00]} 61. g5 {[%emt 0:00:00]} hxg5 {[%emt 0:00:00]} 62. Kb1 {[%emt 0:00:00]} c2+ {[%emt 0:00:00]} 63. Kb2 {[%emt 0:00:00]} Kd2 {[%emt 0:00:00]} 64. Kxb3 {[%emt 0:00:00]} c1=Q {[%emt 0:00:00]} 65. Ka2 {[%emt 0:00:00]} Qc5 {[%emt 0:00:00]} 66. Kb3 {[%emt 0:00:00]} Qb5+ {[%emt 0:00:00]} 67. Ka3 {[%emt 0:00:00]} Kc3 {[%emt 0:00:00]} 68. Ka2 {[%emt 0:00:00]} Qb2# {[%emt 0:00:00]} 0-1

[Event "EYTCC U12 Girls 2018"]
[Site "Bad Blankeburg"]
[Date "2018.07.12"]
[Round "1"]
[White "Fizerova, Lucie"]
[Black "Wagner, Margarethe"]
[Result "*"]
[ECO "A49"]
[WhiteElo "1554"]
[BlackElo "1635"]
[Annotator "NA"]
[PlyCount "64"]
[EventDate "2018.07.12"]
[EventType "swiss"]
[EventCountry "GER"]
[SourceTitle "playchess.com"]
[Source "ChessBase"]
[SourceQuality "1"]
[TimeControl "40/5400+30:1800+30"]

1. d4 {[%emt 0:00:00]} Nf6 {[%emt 0:00:00]} 2. Nf3 {[%emt 0:00:20]} g6 {[%emt 0:00:00]} 3. g3 {[%emt 0:00:23]} Bg7 {[%emt 0:00:00]} 4. Bg2 {[%emt 0:00:18]} O-O {[%emt 0:00:13]} 5. O-O {[%emt 0:00:32]} d6 {[%emt 0:00:08]} 6. c4 {[%emt 0:00:50]} c6 {[%emt 0:00:32]} 7. Nc3 {[%emt 0:00:58]} a6 {[%emt 0:00:12]} 8. a4 {[%emt 0:01:07]} Nbd7 {[%emt 0:01:23]} 9. e4 {[%emt 0:01:46]} c5 {[%emt 0:01:10]} 10. d5 {[%emt 0:02:03]} Ng4 {[%emt 0:03:07]} 11. h3 {[%emt 0:03:05]} Nge5 {[%emt 0:01:16]} 12. Nxe5 {[%emt 0:02:04]} Nxe5 {[%emt 0:00:15]} 13. Qe2 {[%emt 0:02:19]} Re8 {[%emt 0:11:27]} 14. f4 {[%emt 0:02:31]} Nd7 {[%emt 0:00:53]} 15. Bd2 {[%emt 0:03:10]} e6 {[%emt 0:11:31]} 16. Qf3 {[%emt 0:08:55]} exd5 {[%emt 0:06:31]} 17. exd5 {[%emt 0:04:39]} f5 {[%emt 0:04:00]} 18. Rae1 {[%emt 0:12:26]} Nf6 {[%emt 0:04:44]} 19. Rxe8+ {[%emt 0:07:26]} Qxe8 {[%emt 0:00:44]} 20. Re1 {[%emt 0:01:23]} Qf7 {[%emt 0:02:04]} 21. b3 {[%emt 0:05:01]} Bd7 {[%emt 0:02:07]} 22. Kf2 {[%emt 0:02:33]} Re8 {[%emt 0:01:38]} 23. Rxe8+ {[%emt 0:02:09]} Nxe8 {[%emt 0:01:28]} 24. Qe2 {[%emt 0:06:16]} Bd4+ {[%emt 0:01:25]} 25. Kf1 {[%emt 0:01:21]} Qg7 {[%emt 0:02:58]} 26. Nd1 {[%emt 0:02:25]} Nc7 {[%emt 0:02:30]} 27. Qe1 {[%emt 0:04:23]} b5 {[%emt 0:08:54]} 28. axb5 {[%emt 0:03:26]} axb5 {[%emt 0:02:53]} 29. Bf3 {[%emt 0:02:15]} bxc4 {[%emt 0:02:01]} 30. bxc4 {[%emt 0:00:24]} Qf6 {[%emt 0:07:01]} 31. Kg2 {[%emt 0:02:07]} h6 {[%emt 0:02:28]} 32. Qe2 {[%emt 0:01:56]} g5 {[%emt 0:06:21]} *

[Event "EYTCC U12 Girls 2018"]
[Site "Bad Blankeburg"]
[Date "2018.07.12"]
[Round "1"]
[White "Lorenz, Anouk"]
[Black "Voriskova, Anna"]
[Result "0-1"]
[ECO "B34"]
[WhiteElo "1390"]
[BlackElo "1569"]
[Annotator "NA"]
[PlyCount "126"]
[EventDate "2018.07.12"]
[EventType "swiss"]
[EventCountry "GER"]
[SourceTitle "playchess.com"]
[Source "ChessBase"]
[SourceQuality "1"]
[TimeControl "40/5400+30:1800+30"]

1. e4 {[%emt 0:00:00]} c5 {[%emt 0:00:00]} 2. Nf3 {[%emt 0:00:00]} Nc6 {[%emt 0:00:00]} 3. d4 {[%emt 0:00:00]} cxd4 {[%emt 0:00:00]} 4. Nxd4 {[%emt 0:00:00]} g6 {[%emt 0:00:44]} 5. Nc3 {[%emt 0:00:28]} Bg7 {[%emt 0:00:18]} 6. Be3 {[%emt 0:00:21]} Nf6 {[%emt 0:00:30]} 7. f3 {[%emt 0:00:28]} O-O {[%emt 0:04:58]} 8. Qd2 {[%emt 0:01:47]} e6 {[%emt 0:02:28]} 9. O-O-O {[%emt 0:03:25]} d5 {[%emt 0:01:09]} 10. exd5 {[%emt 0:04:13]} exd5 {[%emt 0:00:37]} 11. Nde2 {[%emt 0:02:01]} Be6 {[%emt 0:01:37]} 12. Nf4 {[%emt 0:00:46]} Ne7 {[%emt 0:02:45]} 13. h4 {[%emt 0:05:48]} Nf5 {[%emt 0:17:14]} 14. Bc5 {[%emt 0:05:37]} Re8 {[%emt 0:03:20]} 15. Nfxd5 {[%emt 0:06:02]} Nxd5 {[%emt 0:01:38]} 16. Nxd5 {[%emt 0:04:00]} Qxd5 {[%emt 0:02:56]} 17. Qxd5 {[%emt 0:01:19]} Bxd5 {[%emt 0:00:27]} 18. Rxd5 {[%emt 0:01:56]} Ng3 {[%emt 0:04:35]} 19. Bb5 {[%emt 0:22:04]} Nxh1 {[%emt 0:06:02]} 20. Bxe8 {[%emt 0:01:58]} Rxe8 {[%emt 0:01:13]} 21. Rd1 {[%emt 0:04:11]} Ng3 {[%emt 0:05:55]} 22. Bxa7 {[%emt 0:01:04]} Bh6+ {[%emt 0:03:47]} 23. Kb1 {[%emt 0:00:45]} Nf5 {[%emt 0:01:05]} 24. Rh1 {[%emt 0:04:58]} Re2 {[%emt 0:10:03]} 25. a3 {[%emt 0:02:51]} Rxg2 {[%emt 0:01:36]} 26. Bc5 {[%emt 0:06:43]} Ne3 {[%emt 0:07:10]} 27. c3 {[%emt 0:05:34]} Re2 {[%emt 0:05:57]} 28. h5 {[%emt 0:01:40]} g5 {[%emt 0:03:02]} 29. f4 {[%emt 0:02:14]} gxf4 {[%emt 0:01:57]} 30. Rg1+ {[%emt 0:00:14]} Ng2 {[%emt 0:00:00]} 31. b4 {[%emt 0:00:40]} f3 {[%emt 0:00:45]} 32. Rf1 {[%emt 0:00:47]} Re1+ {[%emt 0:03:18]} 33. Rxe1 {[%emt 0:00:13]} Nxe1 {[%emt 0:00:05]} 34. a4 {[%emt 0:00:28]} Nd3 {[%emt 0:00:24]} 35. Bg1 {[%emt 0:00:38]} f2 {[%emt 0:00:09]} 36. Bxf2 {[%emt 0:00:05]} Nxf2 {[%emt 0:00:04]} 37. b5 {[%emt 0:00:17]} Ne4 {[%emt 0:01:03]} 38. Kc2 {[%emt 0:00:19]} Nc5 {[%emt 0:00:11]} 39. Kb2 {[%emt 0:00:24]} f5 {[%emt 0:00:35]} 40. a5 {[%emt 0:01:56]} f4 {[%emt 0:00:16]} 41. Kc2 {[%emt 0:30:04]} f3 {[%emt 0:30:29]} 42. Kd1 {[%emt 0:00:12]} Be3 {[%emt 0:00:24]} 43. Ke1 {[%emt 0:00:32]} Kg7 {[%emt 0:00:42]} 44. c4 {[%emt 0:00:22]} Kh6 {[%emt 0:00:20]} 45. a6 {[%emt 0:00:41]} bxa6 {[%emt 0:00:12]} 46. bxa6 {[%emt 0:00:15]} Nxa6 {[%emt 0:00:12]} 47. c5 {[%emt 0:00:05]} Kxh5 {[%emt 0:00:20]} 48. c6 {[%emt 0:00:07]} Kg4 {[%emt 0:00:16]} 49. c7 {[%emt 0:00:10]} Nxc7 {[%emt 0:00:06]} 50. Kf1 {[%emt 0:00:31]} h5 {[%emt 0:00:09]} 51. Ke1 {[%emt 0:00:06]} h4 {[%emt 0:00:10]} 52. Kf1 {[%emt 0:00:19]} h3 {[%emt 0:00:07]} 53. Ke1 {[%emt 0:00:23]} h2 {[%emt 0:00:08]} 54. Kd1 {[%emt 0:00:03]} h1=Q+ {[%emt 0:00:19]} 55. Kc2 {[%emt 0:00:08]} Qg2+ {[%emt 0:00:39]} 56. Kd3 {[%emt 0:00:15]} Qd2+ {[%emt 0:00:16]} 57. Kc4 {[%emt 0:00:12]} Qd4+ {[%emt 0:00:13]} 58. Kb3 {[%emt 0:00:10]} Qc5 {[%emt 0:00:26]} 59. Kb2 {[%emt 0:00:18]} f2 {[%emt 0:00:27]} 60. Kb3 {[%emt 0:00:22]} f1=Q {[%emt 0:00:18]} 61. Ka2 {[%emt 0:02:34]} Qfc4+ {[%emt 0:00:56]} 62. Ka1 {[%emt 0:00:28]} Qa3+ {[%emt 0:00:18]} 63. Kb1 {[%emt 0:00:11]} Qcc1# {[%emt 0:00:05]} 0-1